bitfinex/quotes_ETHUSD_20250213
["timestamp","ask_amount","ask_price","bid_price","bid_amount"]
[1739474745358,6.75057658,2651.9,2651.4,3.77145]
[1739474745359,10.52152658,2651.9,2651.4,3.77145]
[1739474745564,10.52152658,2651.9,2651.4,4.60739]
[1739474745892,3.77108,2651.8,2651.4,0.83594]
[1739474746056,3.77117,2651.7,2651.3,3.8161]
[1739474746250,3.77108,2651.8,2651.3,7.58776]
[1739474746455,3.77108,2651.8,2651.3,3.8161]
[1739474746772,3.77108,2651.8,2651.3,3.0]
[1739474746773,3.77102,2651.8,2651.3,3.0]
[1739474746997,3.77123,2651.7,2651.3,3.0]
[1739474747363,10.52146658,2651.9,2651.5,3.77144]
[1739474747564,10.52146658,2651.9,2651.4,3.77153]
[1739474748018,0.094621,2651.8,2651.4,3.77153]
[1739474748418,0.094621,2651.8,2651.4,3.0]
[1739474748723,0.094621,2651.8,2651.6,3.77125]
[1739474749076,0.094621,2651.8,2651.5,3.77144]
[1739474749480,3.77122,2651.7,2651.3,7.448917]
[1739474749725,0.094621,2651.8,2651.4,3.77156]
[1739474749923,0.09543775,2651.6,2651.4,3.77156]
[1739474750122,3.77104,2651.8,2651.4,4.8936077]
[1739474750361,3.77104,2651.8,2651.4,6.77156]
[1739474750665,0.09543775,2651.7,2651.4,6.77148]
[1739474750966,6.75057658,2651.9,2651.4,6.77148]
[1739474751126,10.52145658,2651.9,2651.5,3.77136]
[1739474751457,10.52145658,2651.9,2651.4,6.77148]
[1739474751458,0.09543775,2651.8,2651.4,3.0]
[1739474751658,0.09543775,2651.8,2651.5,3.77136]
[1739474752369,0.09543775,2651.8,2651.5,3.77145]
[1739474754173,0.09543775,2651.8,2651.4,7.8976887]
[1739474754375,0.09543775,2651.8,2651.6,3.77124]
[1739474754926,0.09543775,2651.8,2651.4,7.8976987]
[1739474755142,0.09543775,2651.8,2651.5,3.77142]
[1739474755584,0.7925,2651.7,2651.4,3.0]
[1739474755783,0.7925,2651.7,2651.5,3.77138]
[1739474756087,0.09543775,2651.6,2651.4,3.0]
[1739474756429,4.61081295,2651.7,2651.4,3.0]
[1739474756631,0.09543775,2651.5,2651.4,3.0]
[1739474756831,3.66937658,2651.6,2651.4,3.0]
[1739474757088,0.09543775,2651.5,2651.4,3.0]
[1739474757877,0.09543775,2651.5,2651.4,7.448753]
[1739474758249,3.66937658,2651.9,2651.5,3.77137]
[1739474758429,3.66937658,2651.9,2651.5,3.77145]
[1739474758831,3.66937658,2651.9,2651.4,3.0]
[1739474758832,3.77108,2651.8,2651.4,3.0]
[1739474759064,3.66937658,2651.6,2651.4,6.77158]
[1739474760385,4.47817658,2651.6,2651.2,3.77186]
[1739474760594,8.24955658,2651.6,2651.1,4.54764]
[1739474760798,7.44118658,2651.3,2650.9,3.77227]
[1739474761080,7.44118658,2651.3,2651.0,3.0]
[1739474761392,4.56835,2651.2,2650.7,3.77247]
[1739474761600,4.56835,2651.2,2650.7,4.608556]
[1739474761601,3.66937658,2651.0,2650.7,4.608556]
[1739474761903,3.66937658,2651.0,2650.8,3.0]
[1739474762567,3.66937658,2651.0,2650.9,3.7723]
[1739474763064,3.76557607,2651.0,2650.9,3.7723]
[1739474763501,3.76557607,2651.0,2650.8,3.0]
[1739474763652,3.76557607,2651.0,2650.8,6.77241]
[1739474764313,3.76557607,2651.0,2650.7,0.836086]
[1739474764652,3.76557607,2651.0,2650.8,3.0]
[1739474764982,3.76557607,2651.0,2650.9,3.7723]
[1739474765187,3.76557607,2651.0,2650.6,4.58822]
[1739474765348,3.76557607,2651.0,2650.6,3.77262]
[1739474765553,3.76557607,2651.0,2650.7,3.0]
[1739474765777,3.76557607,2651.0,2650.6,3.77272]
[1739474766154,3.76557607,2651.0,2650.7,3.0]
[1739474766351,3.76557607,2651.0,2649.8,5.92434452]
[1739474766352,3.7723,2650.9,2650.5,3.77287]
[1739474766583,0.88575173,2650.8,2650.5,3.0]
[1739474766894,3.66937658,2650.7,2650.5,3.0]
[1739474767462,0.09595173,2650.6,2650.5,3.0]
[1739474767661,0.09595173,2650.6,2650.2,3.77328]
[1739474767899,3.86871173,2650.6,2650.2,4.527954]
[1739474768794,0.09595173,2650.6,2650.1,3.0]
[1739474768960,0.09595173,2650.6,2649.9,3.7737]
[1739474768961,0.76,2650.3,2649.9,3.7737]
[1739474769163,3.66937658,2650.1,2649.8,2.15048452]
[1739474769550,0.09562131,2650.0,2649.8,5.15048452]
[1739474769750,0.09562131,2650.0,2649.8,6.04292197]
[1739474770065,0.09562131,2650.0,2649.8,9.81676197]
[1739474770393,0.09562131,2650.0,2649.9,6.77372]
[1739474770783,0.76,2650.3,2650.0,6.77358]
[1739474770967,0.0952908,2650.2,2650.0,6.77358]
[1739474771163,0.76,2650.3,2650.0,5.1325162]
[1739474771365,0.0952908,2650.2,2650.0,5.1325162]
[1739474771566,0.76,2650.3,2650.0,1.3590362]
[1739474771772,0.0952908,2650.2,2649.9,6.7737]
[1739474771953,4.53316,2650.3,2649.9,6.7737]
[1739474772153,3.91578006,2650.2,2649.8,2.15048452]
[1739474772356,7.44286658,2650.1,2649.8,2.15048452]
[1739474772903,0.0952908,2650.0,2649.8,2.15048452]
[1739474773658,3.91605294,2650.0,2649.8,2.15048452]
[1739474774380,3.8688808,2650.0,2649.8,2.15048452]
[1739474774839,0.0952908,2650.0,2649.8,2.15048452]
[1739474775115,3.8689508,2650.0,2649.8,2.15048452]
[1739474775497,4.60352,2649.9,2649.8,2.15048452]
[1739474775810,4.60352,2649.9,2649.2,4.58163]
[1739474775811,3.77403,2649.7,2649.3,3.0]
[1739474775965,0.09375789,2649.6,2649.3,3.0]
[1739474776157,3.86798789,2649.6,2649.1,3.77486]
[1739474776357,3.86798789,2649.6,2649.0,3.77489]
[1739474776358,0.14093817,2649.6,2649.2,3.77464]
[1739474776621,0.09375789,2649.6,2649.3,3.0]
[1739474776778,3.91509837,2649.6,2649.1,6.77483]
[1739474776973,3.91509837,2649.6,2649.2,1.054975]
[1739474777179,0.09375789,2649.6,2649.2,1.054975]
[1739474777402,3.86795789,2649.6,2649.3,3.0]
[1739474777582,3.86795789,2649.6,2649.2,1.054975]
[1739474777780,3.91513838,2649.6,2649.2,1.054975]
[1739474778213,2.36175789,2649.6,2649.3,3.0]
[1739474778722,0.8179,2649.5,2649.2,1.054975]
[1739474779072,0.09350072,2649.4,2649.3,6.7745]
[1739474779265,0.09350072,2649.4,2649.3,7.9349115]
[1739474779626,3.66937658,2649.7,2649.4,3.0]
[1739474779769,0.09350072,2649.6,2649.4,3.0]
[1739474780188,0.09350072,2649.6,2649.5,3.77429]
[1739474780870,10.48189658,2650.0,2649.5,3.77429]
[1739474781052,0.09339968,2649.6,2649.5,1.24826815]
[1739474781252,3.77376,2649.9,2649.5,1.24826815]
[1739474781450,0.09339968,2649.6,2649.4,6.77438]
[1739474781654,3.77376,2649.9,2649.4,6.77438]
[1739474781855,0.09339968,2649.5,2649.4,6.77438]
[1739474782056,3.77374,2649.9,2649.5,3.77427]
[1739474782260,10.48186658,2650.0,2649.5,3.77421]
[1739474782442,3.7738,2649.9,2649.4,6.77442]
[1739474782663,3.7738,2649.9,2649.4,7.905319]
[1739474782989,3.77387,2649.8,2649.4,4.130899]
[1739474783375,3.7738,2649.9,2649.4,4.130899]
[1739474783575,3.7738,2649.9,2649.5,3.77428]
[1739474783792,3.7738,2649.9,2649.4,4.130899]
[1739474784000,3.77393,2649.8,2649.4,4.130899]
[1739474784499,3.77374,2649.9,2649.4,7.905309]
[1739474784799,3.77374,2649.9,2649.5,3.77425]
[1739474785370,10.48186658,2650.0,2649.5,4.9422059]
[1739474786191,3.77376,2649.9,2649.5,1.1679559]
[1739474786394,3.77376,2649.9,2649.4,6.77435]
[1739474787992,3.77389,2649.8,2649.4,6.77435]
[1739474788146,3.82102664,2649.9,2649.3,6.77456]
[1739474788343,3.77386,2649.8,2649.3,6.77456]
[1739474788800,3.77422,2649.6,2649.2,0.7601]
[1739474789089,3.77403,2649.7,2649.3,3.0]
[1739474789597,6.04192,2649.8,2649.4,3.77442]
[1739474789743,2.268,2649.8,2649.4,7.54872]
[1739474789944,3.77382,2649.9,2649.3,3.0]
[1739474789945,2.268,2649.9,2649.5,3.77421]
[1739474790144,2.268,2649.9,2649.6,3.77408]
[1739474790392,2.268,2649.9,2649.7,3.77397]
[1739474790587,2.268,2649.9,2649.8,3.77386]
[1739474790941,4.44027658,2650.0,2649.8,3.77386]
[1739474791167,3.77331,2650.2,2649.8,4.151246]
[1739474791583,4.42407658,2650.3,2650.1,3.77337]
[1739474791798,3.66937658,2650.3,2650.1,3.77336]
[1739474792324,3.66937658,2650.3,2650.0,3.77358]
[1739474792485,3.66937658,2650.3,2650.1,3.77343]
[1739474792899,0.09192426,2650.2,2650.1,3.77343]
[1739474793400,0.09192426,2650.2,2650.0,3.77356]
[1739474793564,3.66937658,2650.3,2650.0,3.77358]
[1739474793764,0.09192426,2650.2,2649.9,3.77368]
[1739474794008,3.66937658,2650.3,2649.9,4.6481376]
[1739474794319,0.09192426,2650.2,2649.9,3.77366]
[1739474794820,0.04716977,2650.2,2649.8,0.377386]
[1739474794984,3.86564912,2650.1,2649.7,3.7739]
[1739474795317,10.47447658,2650.0,2649.6,3.0]
[1739474795522,6.70087658,2650.0,2649.6,3.77411]
[1739474795667,6.70087658,2650.0,2649.7,3.77395]
[1739474795867,0.0921448,2649.9,2649.6,3.77411]
[1739474796065,0.0921448,2649.9,2649.8,3.77386]
[1739474796304,0.0921448,2649.9,2649.0,4.55343]
[1739474796305,2.268,2649.6,2649.0,4.55343]
[1739474796570,2.268,2649.1,2648.5,1.64977279]
[1739474796828,3.77529,2648.8,2648.5,1.64977279]
[1739474797122,4.60659,2648.8,2648.0,0.7785]
[1739474797327,4.69810063,2648.8,2648.0,0.7785]
[1739474797964,6.13916335,2648.8,2648.0,0.7785]
[1739474798525,8.46936188,2648.8,2647.6,3.77689]
[1739474798674,8.42216335,2648.8,2647.9,0.34751838]
[1739474798876,8.97216335,2648.8,2647.9,0.34751838]
[1739474799109,12.64153993,2648.8,2647.9,0.34751838]
[1739474800229,8.97216335,2648.8,2647.9,0.34751838]
[1739474800439,8.97216335,2648.8,2647.8,3.0]
[1739474801132,12.64153993,2648.8,2647.7,1.14121838]
[1739474801268,8.97216335,2648.8,2647.7,1.14121838]
[1739474801702,6.70416335,2648.8,2647.7,0.7937]
[1739474802023,6.75136801,2648.8,2647.7,0.7937]
[1739474802174,7.51908022,2648.8,2647.7,0.7937]
[1739474802370,11.14125214,2648.8,2647.7,0.7937]
[1739474802812,11.14125214,2648.8,2648.7,6.7e-06]
[1739474803258,15.40925214,2648.8,2648.7,6.7e-06]
[1739474803554,24.86325214,2648.8,2648.7,6.7e-06]
[1739474804140,3.77703,2647.6,2647.1,3.8037]
[1739474804453,0.088641,2647.5,2647.2,0.758148]
[1739474804753,3.77694,2647.7,2647.2,0.758148]
[1739474804956,0.088641,2647.4,2647.1,0.8037]
[1739474805160,3.7772,2647.5,2647.1,0.8037]
[1739474805301,0.08836484,2647.3,2647.1,0.8037]
[1739474805501,0.04721657,2647.4,2647.1,0.8037]
[1739474805502,3.82452657,2647.4,2647.1,0.8037]
[1739474805698,0.08836484,2647.2,2647.1,0.005]
[1739474805956,7.44685658,2647.3,2647.1,0.005]
[1739474806252,3.86570466,2647.2,2647.1,0.005]
[1739474806462,3.91292909,2647.2,2647.1,0.005]
[1739474806608,3.86570466,2647.2,2647.1,0.005]
[1739474806962,3.91292909,2647.2,2647.1,0.005]
[1739474810056,3.86570466,2647.2,2647.1,0.005]
[1739474810257,5.15151935,2647.2,2647.1,0.005]
[1739474810783,5.19874765,2647.2,2647.1,0.005]
[1739474811188,5.15151935,2647.2,2647.1,0.005]
[1739474811333,0.38113466,2647.2,2647.1,0.005]
[1739474811534,0.08813466,2647.2,2647.1,0.005]
[1739474811985,4.0705,2647.3,2647.1,0.005]
[1739474812205,0.08640369,2647.2,2647.1,0.005]
[1739474812353,3.86397369,2647.2,2647.1,0.005]
[1739474812554,3.77757,2647.2,2647.1,0.005]
[1739474812775,3.86397369,2647.2,2647.1,0.005]
[1739474813367,0.08640369,2647.2,2647.1,0.005]
[1739474813900,0.0864958,2647.2,2647.1,0.005]
[1739474814069,4.0705,2647.3,2647.1,0.005]
[1739474814248,0.0864958,2647.2,2647.1,0.005]
[1739474814446,4.07016,2647.5,2647.1,0.005]
[1739474814652,0.0864958,2647.4,2647.1,0.005]
[1739474815105,3.77757,2647.2,2647.1,0.005]
[1739474815471,3.86409343,2647.2,2647.1,0.005]
[1739474815865,0.08652343,2647.2,2647.1,0.005]
[1739474816067,3.77757,2647.2,2647.1,0.005]
[1739474816325,3.86409343,2647.2,2647.1,0.005]
[1739474817589,0.08652343,2647.2,2647.1,0.005]
[1739474818003,3.77757,2647.2,2647.1,0.005]
[1739474818205,3.86409343,2647.2,2647.1,0.005]
[1739474818731,11.4306011,2647.2,2647.1,0.005]
[1739474818856,11.3833765,2647.2,2647.1,0.005]
[1739474819752,11.6613765,2647.2,2647.1,0.005]
[1739474822016,12.2263765,2647.2,2647.1,0.005]
[1739474822327,10.8855765,2647.2,2647.1,0.005]
[1739474822524,10.5925765,2647.2,2647.1,0.005]
[1739474822687,0.37952343,2647.2,2647.1,0.005]
[1739474823028,4.15709343,2647.2,2647.1,0.005]
[1739474823529,4.20431724,2647.2,2647.1,0.005]
[1739474823731,10.15669382,2647.2,2647.1,0.005]
[1739474823890,11.58319439,2647.2,2647.1,0.005]
[1739474824075,12.13319439,2647.2,2647.1,0.005]
[1739474824406,22.40449439,2647.2,2647.1,0.005]
[1739474824724,22.11149439,2647.2,2647.1,0.005]
[1739474824932,12.94449439,2647.2,2647.1,0.005]
[1739474826021,22.40449439,2647.2,2647.1,0.005]
[1739474826570,12.94449439,2647.2,2647.1,0.005]
[1739474827212,12.10149439,2647.2,2647.1,0.005]
[1739474827388,8.60942439,2647.2,2647.1,0.005]
[1739474827590,11.57569439,2647.2,2647.1,0.005]
[1739474827791,7.79812439,2647.2,2647.1,0.005]
[1739474827986,11.57569439,2647.2,2647.1,0.005]
[1739474830125,0.08652343,2647.2,2647.1,0.005]
[1739474830676,3.7773,2647.4,2647.1,0.005]
[1739474830808,3.86049583,2647.2,2647.1,0.005]
[1739474831005,6.12849583,2647.2,2647.1,0.005]
[1739474831210,2.35092583,2647.2,2647.1,0.005]
[1739474831410,6.17572005,2647.2,2647.1,0.005]
[1739474832043,6.12849583,2647.2,2647.1,0.005]
[1739474832351,7.12380184,2647.2,2647.1,0.005]
[1739474832486,10.84790528,2647.2,2647.1,0.005]
[1739474832684,10.80067842,2647.2,2647.1,0.005]
[1739474834113,11.58197842,2647.2,2647.1,0.005]
[1739474834307,12.13947842,2647.2,2647.1,0.005]
[1739474839236,10.80067842,2647.2,2647.1,0.005]
[1739474839403,11.09367842,2647.2,2647.1,0.005]
[1739474840355,7.31610842,2647.2,2647.1,0.005]
[1739474840948,11.09367842,2647.2,2647.1,0.005]
[1739474842747,7.31610842,2647.2,2647.1,0.005]
[1739474843151,6.3208762,2647.2,2647.1,0.005]
[1739474843351,10.0984462,2647.2,2647.1,0.005]
[1739474843519,6.3208762,2647.2,2647.1,0.005]
[1739474843919,9.7979462,2647.2,2647.1,0.005]
[1739474844525,10.5725462,2647.2,2647.1,0.005]
[1739474845070,12.04434482,2647.2,2647.1,0.005]
[1739474845248,12.60184482,2647.2,2647.1,0.005]
[1739474848966,16.35744426,2647.2,2647.1,1e-05]
[1739474849170,6.04714,2646.1,2646.0,0.1436667]
[1739474849464,7.111841,2646.1,2646.0,0.1436667]
[1739474849608,7.119341,2646.1,2646.0,0.1436667]
[1739474849814,7.72409123,2646.1,2646.0,0.1436667]
[1739474850065,7.676841,2646.1,2646.0,0.1436667]
[1739474850409,14.796701,2646.1,2645.1,0.7886]
[1739474850610,2.268,2645.0,2644.6,0.7886]
[1739474850869,6.06483076,2644.9,2644.6,0.7886]
[1739474851082,6.06483076,2644.9,2644.5,0.03]
[1739474851083,9.79850614,2644.9,2644.5,0.03]
[1739474851374,5.93737658,2644.6,2644.5,0.03]
[1739474851516,5.98464634,2644.6,2644.5,0.03]
[1739474851720,3.79642038,2644.6,2644.5,0.03]
[1739474852169,7.57771038,2644.6,2644.5,0.03]
[1739474852468,3.74915062,2644.6,2644.5,0.03]
[1739474852612,7.53794062,2644.6,2644.5,0.03]
[1739474853230,9.46934968,2644.6,2644.5,0.03]
[1739474853428,9.47684968,2644.6,2644.5,0.03]
[1739474853815,9.46184968,2644.6,2644.5,0.03]
[1739474854016,4.54865062,2644.6,2644.5,0.03]
[1739474854216,4.04215062,2644.6,2644.5,0.03]
[1739474854453,4.05715062,2644.6,2644.5,0.03]
[1739474854872,7.83844062,2644.6,2644.5,0.03]
[1739474855029,3.74915062,2644.6,2644.5,0.03]
[1739474855572,0.07977404,2644.6,2644.5,4.62243]
[1739474855823,0.07977404,2644.6,2644.5,5.381744]
[1739474855968,3.66937658,2645.2,2644.6,3.78119]
[1739474856132,7.74287658,2645.2,2644.6,3.78119]
[1739474856333,3.7806,2645.1,2644.5,1.600314]
[1739474856533,3.66937658,2644.9,2644.6,3.78119]
[1739474856778,4.07356,2645.2,2644.6,3.78119]
[1739474856779,3.96237658,2645.2,2644.6,3.78119]
[1739474857150,3.66937658,2644.9,2644.5,0.841]
[1739474857392,3.78125,2644.7,2644.5,0.03]
[1739474858384,8.21718658,2644.9,2644.5,0.03]
[1739474858553,5.25949524,2644.9,2644.5,0.03]
[1739474858756,3.78123,2644.7,2644.5,0.03]
[1739474859173,7.5625,2644.7,2644.5,0.03]
[1739474859386,9.04042524,2644.9,2644.5,0.03]
[1739474859567,3.78106,2644.8,2644.5,0.03]
[1739474859770,9.04042524,2644.9,2644.5,0.03]
[1739474859976,0.293,2644.8,2644.5,0.03]
[1739474860304,3.66937658,2645.2,2644.7,3.78101]
[1739474860591,3.78004,2645.5,2645.0,3.78066]
[1739474860811,4.07299,2645.6,2645.0,3.78066]
[1739474860935,4.07296,2645.6,2645.1,0.7561]
[1739474861140,3.78019,2645.4,2645.1,0.7561]
[1739474861686,0.07354739,2645.3,2644.9,3.7561]
[1739474862206,3.78052,2645.2,2644.9,3.7561]
[1739474862498,3.78052,2645.2,2644.6,0.7561]
[1739474862499,6.12305916,2645.1,2644.6,0.7561]
[1739474862656,3.78072,2645.0,2644.6,0.7561]
[1739474862992,6.04858,2645.1,2644.6,3.7561]
[1739474863172,0.07438916,2644.9,2644.6,3.7561]
[1739474863382,2.268,2645.1,2644.6,7.53727]
[1739474863589,0.07438916,2644.8,2644.6,7.53727]
[1739474863768,2.268,2645.1,2644.6,7.53727]
[1739474863968,0.07438916,2644.7,2644.6,7.53727]
[1739474864187,2.268,2645.1,2644.6,3.7561]
[1739474864365,0.07438916,2644.7,2644.6,0.7561]
[1739474864574,3.82797551,2645.0,2644.5,0.03]
[1739474864907,3.78071,2645.0,2644.5,0.03]
[1739474865045,0.07410247,2644.9,2644.5,0.03]
[1739474865716,9.73366658,2644.6,2644.5,0.03]
[1739474865933,11.74442724,2644.6,2644.5,1e-05]
[1739474866052,11.81888132,2644.6,2644.5,1e-05]
[1739474866248,3.78286,2643.5,2643.4,0.1436667]
[1739474866449,10.04515218,2643.5,2643.4,0.1436667]
[1739474866760,10.04515218,2643.5,2642.1,1.90130046]
[1739474866761,3.78472,2642.2,2642.1,0.005]
[1739474866986,0.293,2642.4,2642.1,0.005]
[1739474867184,0.07413029,2642.2,2642.1,0.005]
[1739474867505,0.07097365,2642.2,2642.1,0.005]
[1739474867718,0.54562965,2642.2,2642.1,0.005]
[1739474867853,4.4013233,2642.2,2642.1,0.005]
[1739474868050,4.35400867,2642.2,2642.1,0.005]
[1739474868385,16.42932919,2642.2,2642.1,0.005]
[1739474868717,3.78593,2641.4,2640.8,0.1436667]
[1739474868853,3.78625,2641.2,2640.8,0.1436667]
[1739474869059,0.06999137,2641.1,2640.8,0.1436667]
[1739474869274,0.015,2641.5,2640.8,0.1436667]
[1739474869475,0.36259267,2641.4,2641.1,3.7862]
[1739474869713,0.06959267,2641.4,2640.8,3.9303867]
[1739474869868,0.06959267,2641.4,2640.9,0.47318867]
[1739474870209,0.293,2641.8,2641.3,3.78601]
[1739474870513,0.293,2641.8,2641.2,3.78605]
[1739474870802,0.06959267,2641.7,2641.3,6.786]
[1739474871254,4.31385821,2641.7,2640.9,0.47318867]
[1739474871413,3.78583,2641.5,2640.8,0.1436667]
[1739474871845,8.09931821,2641.7,2640.8,6.9303767]
[1739474872053,0.06959267,2641.4,2641.0,3.0]
[1739474872214,0.293,2641.6,2641.0,6.78637]
[1739474872415,0.06959267,2641.3,2641.0,1.07164967]
[1739474872713,0.06959267,2641.2,2641.0,1.07164967]
[1739474872910,3.78582,2641.5,2640.8,3.1436667]
[1739474873149,3.78615,2641.2,2640.8,0.1436667]
[1739474873357,0.293,2641.1,2640.9,3.78658]
[1739474873537,0.293,2641.4,2640.9,3.78658]
[1739474873848,0.293,2641.4,2641.0,0.47167467]
[1739474874407,0.293,2641.4,2641.0,4.25807467]
[1739474874649,0.821,2642.2,2641.1,0.02829612]
[1739474874807,7.5688,2642.5,2641.7,3.7854]
[1739474875016,0.293,2642.4,2641.4,3.0]
[1739474875211,0.293,2642.4,2641.8,3.78528]
[1739474875415,0.293,2642.4,2641.6,3.78558]
[1739474875612,0.293,2642.4,2641.8,3.78526]
[1739474875812,0.293,2642.4,2641.9,3.78515]
[1739474876048,0.293,2642.4,2641.9,3.78504]
[1739474876358,0.293,2642.4,2642.0,3.78501]
[1739474876561,0.293,2642.6,2642.3,3.78456]
[1739474876700,0.293,2642.6,2642.4,3.78434]
[1739474877160,0.293,2642.9,2642.3,3.78456]
[1739474877361,0.293,2642.9,2642.4,3.78434]
[1739474877696,6.002,2643.4,2642.5,3.7841]
[1739474877949,0.293,2643.5,2642.6,0.02823611]
[1739474878109,3.7821,2644.1,2642.6,0.02823611]
[1739474878110,3.78238,2643.9,2643.2,3.7832]
[1739474878314,0.293,2643.8,2643.2,3.7832]
[1739474878549,4.07543,2643.8,2643.0,3.78345]
[1739474878710,4.07546,2643.8,2643.1,0.7896]
[1739474878911,0.293,2643.8,2643.1,0.7896]
[1739474879218,0.293,2643.8,2643.1,4.57291]
[1739474879413,3.78258,2643.7,2643.1,0.7896]
[1739474880254,3.78309,2643.4,2642.7,0.7772]
[1739474880399,0.04729582,2643.3,2642.7,0.7772]
[1739474880838,0.0075,2643.7,2642.9,3.78363]
[1739474880839,3.78267,2643.7,2642.9,3.78363]
[1739474881059,0.293,2643.8,2643.1,3.78334]
[1739474881208,0.293,2643.8,2643.2,3.78325]
[1739474881404,0.293,2643.8,2642.7,5.07605821]
[1739474881603,3.78266,2643.7,2643.0,3.78355]
[1739474882150,7.56537,2643.7,2643.0,3.78355]
[1739474882557,3.78266,2643.7,2643.0,3.78349]
[1739474882737,3.78266,2643.7,2643.0,7.56697]
[1739474882950,0.07068632,2643.6,2642.8,0.50760582]
[1739474883105,0.07068632,2643.6,2643.1,3.0]
[1739474883311,3.85350632,2643.6,2643.0,3.0]
[1739474883647,3.85349632,2643.6,2643.0,3.0]
[1739474883958,0.07068632,2643.6,2643.0,3.0]
[1739474884104,3.85340632,2643.6,2643.0,3.0]
[1739474884303,0.04728652,2643.5,2642.7,0.7772]
[1739474884500,3.78382,2642.9,2642.3,0.8031]
[1739474884806,3.78412,2642.7,2642.3,0.8031]
[1739474885336,0.07068632,2642.6,2642.3,0.8031]
[1739474885505,3.78432,2642.5,2642.3,0.8031]
[1739474885703,3.78429,2642.6,2641.9,0.8034]
[1739474885908,3.78443,2642.4,2641.9,1.71598931]
[1739474886122,3.78404,2642.7,2642.0,3.78488]
[1739474886358,0.293,2642.9,2642.1,3.0]
[1739474886359,0.07068632,2642.6,2642.1,3.0]
[1739474886521,3.85490632,2642.6,2642.1,3.0]
[1739474886725,3.85490632,2642.6,2641.9,0.8034]
[1739474886726,3.78465,2642.3,2641.9,0.8034]
[1739474887021,3.78429,2642.5,2641.3,0.8195]
[1739474887254,7.57028,2642.0,2641.3,0.8195]
[1739474887455,3.78496,2642.1,2641.3,0.8195]
[1739474887625,3.78547,2641.7,2641.3,0.8195]
[1739474888175,0.07068632,2641.6,2641.3,0.8195]
[1739474888528,3.78578,2641.5,2640.9,4.60375]
[1739474888771,3.78566,2641.6,2640.9,5.45717367]
[1739474888917,0.07068632,2641.4,2641.0,3.0]
[1739474889121,3.78562,2641.6,2640.9,5.45717367]
[1739474889358,3.78574,2641.5,2640.9,5.45717367]
[1739474889681,3.85642632,2641.5,2640.9,5.45717367]
[1739474889845,3.85642632,2641.5,2640.9,1.67072367]
[1739474890249,3.7863,2641.1,2640.8,0.1436667]
[1739474890785,0.07009307,2641.0,2640.8,0.1436667]
[1739474892433,0.07009307,2641.0,2640.8,3.9302567]
[1739474892626,0.293,2641.3,2640.9,3.78646]
[1739474892980,3.78574,2641.5,2640.9,3.78654]
[1739474893121,0.07009307,2641.2,2640.8,0.1436667]
[1739474893327,3.78613,2641.3,2640.8,0.1436667]
[1739474893631,3.78637,2641.1,2640.8,0.1436667]
[1739474893828,3.90204092,2641.2,2640.8,0.1436667]
[1739474893829,3.78658,2640.9,2640.8,0.1436667]
[1739474894375,5.04904646,2640.9,2640.8,0.1436667]
[1739474895092,1.26246646,2640.9,2640.8,0.1436667]
[1739474895226,0.06843422,2640.9,2640.8,0.1436667]
[1739474895675,3.78658,2640.9,2640.8,0.1436667]
[1739474895825,0.06826728,2640.9,2640.8,0.1436667]
[1739474896480,3.78638,2641.1,2640.8,0.1436667]
[1739474896686,0.06826728,2640.9,2640.8,0.1436667]
[1739474896829,3.78638,2641.1,2640.8,0.1436667]
[1739474897203,3.78624,2641.2,2640.8,0.1436667]
[1739474897375,0.06826728,2641.0,2640.8,0.1436667]
[1739474897581,3.78658,2640.9,2640.8,0.1436667]
[1739474897741,0.06826728,2640.9,2640.8,0.1436667]
[1739474898258,3.78612,2641.3,2640.8,0.1436667]
[1739474898597,4.07887,2641.4,2640.8,3.9303967]
[1739474898750,0.06796117,2641.2,2640.8,0.82245711]
[1739474898951,4.07887,2641.4,2640.8,4.60907711]
[1739474899185,0.06796117,2641.1,2640.8,4.60908711]
[1739474899388,4.07893,2641.4,2640.9,3.78658]
[1739474899586,0.06796117,2641.0,2640.9,3.78658]
[1739474899789,0.293,2641.7,2641.2,3.78609]
[1739474899953,0.293,2641.7,2641.0,3.78638]
[1739474900307,0.293,2641.7,2641.1,3.78626]
[1739474900855,4.07845,2641.7,2641.1,3.78621]
[1739474901212,3.7856,2641.6,2641.1,3.78621]
[1739474901414,3.78595,2641.4,2640.9,1.64318471]
[1739474901563,3.78609,2641.3,2640.9,0.8036]
[1739474902006,3.78595,2641.4,2640.9,0.8036]
[1739474902466,4.59185821,2641.7,2640.9,0.8036]
[1739474902667,3.78612,2641.3,2640.9,0.8036]
[1739474902917,3.78582,2641.5,2640.9,4.59018]
[1739474903125,3.78582,2641.5,2640.9,0.8036]
[1739474903413,3.78598,2641.4,2640.9,0.8036]
[1739474903600,1.06456782,2641.5,2640.9,4.59015]
[1739474903917,4.85036782,2641.5,2640.9,4.59011]
[1739474904117,3.78589,2641.4,2640.9,4.59011]
[1739474904817,3.78603,2641.3,2640.9,0.8036]
[1739474905421,3.33256782,2641.5,2640.9,0.8036]
[1739474905603,3.78658,2640.9,2640.8,0.1436667]
[1739474906385,6.05458,2640.9,2640.8,0.1436667]
[1739474906643,6.88581943,2640.9,2640.8,0.1436667]
[1739474906944,8.38293119,2640.9,2640.8,0.1436667]
[1739474907147,8.33559176,2640.9,2640.8,0.1436667]
[1739474909643,6.56685821,2641.1,2640.8,0.1436667]
[1739474909942,6.05458,2640.9,2640.8,0.1436667]
[1739474910441,2.268,2640.9,2640.8,0.1436667]
[1739474910793,6.05458,2640.9,2640.8,0.1436667]
[1739474911193,7.08992382,2640.9,2640.8,0.1436667]
[1739474912240,1.03534382,2640.9,2640.8,0.1436667]
[1739474912470,6.56685821,2641.1,2640.8,0.1436667]
[1739474912471,3.7863,2641.1,2640.8,0.1436667]
[1739474912631,3.78651,2641.0,2640.8,0.1436667]